lending/lending_fUSD_20250130
["ID","MTS","AMOUNT","RATE_DAILY","PERIOD"]
[350979661,1738265451051,-500.0,0.00019178,2]
[350979662,1738265451060,-500.0,0.00019178,2]
[350979663,1738265451071,-500.0,0.00019178,2]
[350979664,1738265451080,-1138.08,0.00019178,2]
[350979665,1738265451089,-162.88662701,0.00019178,2]
[350979666,1738265451099,-500.0,0.00019178,2]
[350979667,1738265451108,-501.32139574,0.00019178,2]
[350979668,1738265451117,-1195.78,0.00019178,2]
[350979669,1738265451127,-1079.55,0.00019178,2]
[350979670,1738265451137,-500.0,0.00019178,2]
[350979671,1738265451147,-500.0,0.00019178,2]
[350979672,1738265451157,-500.0,0.00019178,2]
[350979673,1738265451167,-500.0,0.00019178,2]
[350979674,1738265451177,-500.0,0.00019178,2]
[350979675,1738265451187,-500.0,0.00019178,2]
[350979676,1738265451197,-500.0,0.00019178,2]
[350979677,1738265451207,-500.0,0.00019178,2]
[350979678,1738265451217,-500.0,0.00019178,2]
[350979679,1738265451226,-500.0,0.00019178,2]
[350979680,1738265451235,-500.0,0.00019178,2]
[350979681,1738265451245,-500.0,0.00019178,2]
[350979682,1738265451255,-1102.66,0.00019178,2]
[350979683,1738265451264,-500.0,0.00019178,2]
[350979684,1738265451278,-500.0,0.00019178,2]
[350979685,1738265451288,-500.0,0.00019178,2]
[350979686,1738265451297,-1627.58,0.00019178,2]
[350979687,1738265451308,-500.0,0.00019178,2]
[350979688,1738265451318,-500.0,0.00019178,2]
[350979689,1738265451328,-500.0,0.00019178,2]
[350979690,1738265451338,-500.0,0.00019178,2]
[350979691,1738265451348,-500.0,0.00019178,2]
[350979692,1738265451358,-500.0,0.00019178,2]
[350979693,1738265451367,-500.0,0.00019178,2]
[350979694,1738265451377,-577.46,0.00019178,2]
[350979695,1738265451387,-500.0,0.00019178,2]
[350979696,1738265451397,-505.44016069,0.00019178,2]
[350979697,1738265451407,-500.0,0.00019178,2]
[350979698,1738265451417,-500.0,0.00019178,2]
[350979699,1738265451427,-500.0,0.00019178,2]
[350979700,1738265451437,-500.0,0.00019178,2]
[350979701,1738265451447,-500.0,0.00019178,2]
[350979702,1738265451456,-665.89,0.00019178,2]
[350979703,1738265451466,-500.0,0.00019178,2]
[350979704,1738265451476,-500.0,0.00019178,2]
[350979705,1738265451486,-500.0,0.00019178,2]
[350979706,1738265451497,-500.0,0.00019178,2]
[350979707,1738265451507,-500.0,0.00019178,2]
[350979708,1738265451518,-500.0,0.00019178,2]
[350979709,1738265451530,-763.26,0.00019178,2]
[350979710,1738265451540,-500.0,0.00019178,2]
[350979711,1738265451550,-500.0,0.00019178,2]
[350979712,1738265451560,-500.0,0.00019178,2]
[350979713,1738265451569,-883.93,0.00019178,2]
[350979714,1738265451579,-645.64,0.00019178,2]
[350979715,1738265451589,-500.0,0.00019178,2]
[350979716,1738265451599,-508.26773276,0.00019178,2]
[350979717,1738265451608,-500.0,0.00019178,2]
[350979718,1738265451619,-500.0,0.00019178,2]
[350979719,1738265451628,-806.06,0.00019178,2]
[350979720,1738265451638,-500.0,0.00019178,2]
[350979721,1738265451648,-500.0,0.00019178,2]
[350979722,1738265451658,-500.0,0.00019178,2]
[350979723,1738265451668,-500.0,0.00019178,2]
[350979724,1738265451677,-500.0,0.00019178,2]
[350979725,1738265451687,-1069.75,0.00019178,2]
[350979726,1738265451696,-500.0,0.00019178,2]
[350979727,1738265451706,-500.0,0.00019178,2]
[350979728,1738265451971,-500.0,0.00019178,2]
[350979729,1738265451981,-500.0,0.00019178,2]
[350979730,1738265451994,-738.92,0.00019178,2]
[350979731,1738265452017,-500.0,0.00019178,2]
[350979732,1738265452041,-500.0,0.00019178,2]
[350979733,1738265452063,-500.0,0.00019178,2]
[350979734,1738265452085,-500.0,0.00019178,2]
[350979735,1738265452106,-500.0,0.00019178,2]
[350979736,1738265452129,-500.0,0.00019178,2]
[350979737,1738265452152,-513.07362114,0.00019178,2]
[350979738,1738265452174,-1182.83,0.00019178,2]
[350979739,1738265452197,-500.0,0.00019178,2]
[350979740,1738265452218,-500.0,0.00019178,2]
[350979741,1738265452241,-988.9,0.00019178,2]
[350979742,1738265452261,-500.0,0.00019178,2]
[350979743,1738265452271,-500.0,0.00019178,2]
[350979744,1738265452282,-500.0,0.00019178,2]
[350979745,1738265452291,-500.0,0.00019178,2]
[350979746,1738265452301,-500.0,0.00019178,2]
[350979747,1738265452310,-500.0,0.00019178,2]
[350979748,1738265452321,-500.0,0.00019178,2]
[350979749,1738265452330,-633.0,0.00019178,2]
[350979750,1738265452340,-500.0,0.00019178,2]
[350979751,1738265452350,-898.63,0.00019178,2]
[350979752,1738265452359,-500.0,0.00019178,2]
[350979753,1738265452369,-500.0,0.00019178,2]
[350979754,1738265452378,-500.0,0.00019178,2]
[350979755,1738265452388,-500.0,0.00019178,2]
[350979756,1738265452397,-594.04478226,0.00019178,2]
[350979757,1738265452407,-500.0,0.00019178,2]
[350979758,1738265452416,-500.0,0.00019178,2]
[350979759,1738265452425,-500.0,0.00019178,2]
[350979760,1738265452435,-528.44,0.00019178,2]
[350979761,1738265452444,-500.0,0.00019178,2]
[350979762,1738265452453,-500.0,0.00019178,2]
[350979763,1738265452463,-500.0,0.00019178,2]
[350979764,1738265452473,-500.0,0.00019178,2]
[350979765,1738265452483,-500.0,0.00019178,2]
[350979766,1738265452493,-657.19,0.00019178,2]
[350979767,1738265452502,-500.0,0.00019178,2]
[350979768,1738265452512,-1093.29,0.00019178,2]
[350979769,1738265452523,-500.0,0.00019178,2]
[350979770,1738265452533,-500.0,0.00019178,2]
[350979771,1738265452542,-825.65,0.00019178,2]
[350979772,1738265452552,-500.0,0.00019178,2]
[350979773,1738265452561,-500.0,0.00019178,2]
[350979774,1738265452571,-500.0,0.00019178,2]
[350979775,1738265452580,-824.67,0.00019178,2]
[350979776,1738265452589,-500.0,0.00019178,2]
[350979777,1738265452599,-500.0,0.00019178,2]
[350979778,1738265452609,-500.0,0.00019178,2]
[350979779,1738265452618,-500.0,0.00019178,2]
[350979780,1738265452628,-500.0,0.00019178,2]
[350979781,1738265452637,-500.0,0.00019178,2]
[350979782,1738265452647,-500.0,0.00019178,2]
[350979783,1738265452656,-500.0,0.00019178,2]
[350979784,1738265452666,-500.0,0.00019178,2]
[350979785,1738265452675,-973.56,0.00019178,2]
[350979786,1738265452685,-731.2,0.00019178,2]
[350979787,1738265452694,-500.0,0.00019178,2]
[350979788,1738265452704,-500.0,0.00019178,2]
[350979789,1738265452714,-500.0,0.00019178,2]
[350979790,1738265452724,-500.0,0.00019178,2]
[350979791,1738265452734,-503.40353347,0.00019178,2]
[350979792,1738265452743,-545.63177905,0.00019178,2]
[350979793,1738265452753,-500.0,0.00019178,2]
[350979794,1738265452763,-500.0,0.00019178,2]
[350979795,1738265452772,-553.22,0.00019178,2]
[350979796,1738265452782,-500.0,0.00019178,2]
[350979797,1738265452792,-829.67,0.00019178,2]
[350979798,1738265452802,-500.0,0.00019178,2]
[350979799,1738265452812,-500.0,0.00019178,2]
[350979800,1738265452822,-1339.73,0.00019178,2]
[350979801,1738265452831,-912.62,0.00019178,2]
[350979802,1738265452841,-500.0,0.00019178,2]
[350979803,1738265452851,-500.0,0.00019178,2]
[350979804,1738265452861,-995.54,0.00019178,2]
[350979805,1738265452871,-500.0,0.00019178,2]
[350979806,1738265452880,-500.0,0.00019178,2]
[350979807,1738265452891,-500.0,0.00019178,2]
[350979808,1738265452902,-500.0,0.00019178,2]
[350979809,1738265452919,-500.0,0.00019178,2]
[350979810,1738265452929,-500.0,0.00019178,2]
[350979811,1738265452939,-500.0,0.00019178,2]
[350979812,1738265452950,-533.08479025,0.00019178,2]
[350979813,1738265452960,-986.24,0.00019178,2]
[350979814,1738265452970,-500.0,0.00019178,2]
[350979815,1738265452980,-500.0,0.00019178,2]
[350979816,1738265452991,-500.0,0.00019178,2]
[350979817,1738265453001,-500.0,0.00019178,2]
[350979818,1738265453011,-500.0,0.00019178,2]
[350979819,1738265453021,-500.0,0.00019178,2]
[350979820,1738265453031,-500.0,0.00019178,2]
[350979821,1738265453040,-500.0,0.00019178,2]
[350979822,1738265453050,-500.0,0.00019178,2]
[350979823,1738265453060,-504.66869947,0.00019178,2]
[350979824,1738265453070,-500.0,0.00019178,2]
[350979825,1738265453079,-500.0,0.00019178,2]
[350979826,1738265453089,-500.0,0.00019178,2]
[350979827,1738265453099,-778.15,0.00019178,2]
[350979828,1738265453108,-500.0,0.00019178,2]
[350979829,1738265453118,-500.0,0.00019178,2]
[350979830,1738265453128,-854.56,0.00019178,2]
[350979831,1738265453138,-500.0,0.00019178,2]
[350979832,1738265453147,-1040.07,0.00019178,2]
[350979833,1738265453157,-500.0,0.00019178,2]
[350979834,1738265453167,-500.0,0.00019178,2]
[350979835,1738265453177,-310.69107585,0.00019178,2]
[350979836,1738265453187,-670.38,0.00019178,2]
[350979837,1738265453196,-500.0,0.00019178,2]
[350979838,1738265453206,-500.0,0.00019178,2]
[350979839,1738265453216,-500.0,0.00019178,2]
[350979840,1738265453227,-500.0,0.00019178,2]
[350979841,1738265453237,-588.21545937,0.00019178,2]
[350979842,1738265453247,-505.8991116,0.00019178,2]
[350979843,1738265453258,-500.0,0.00019178,2]
[350979844,1738265453268,-642.43822698,0.00019178,2]
[350979845,1738265453279,-500.0,0.00019178,2]
[350979846,1738265453289,-500.0,0.00019178,2]
[350979847,1738265453299,-500.0,0.00019178,2]
[350979848,1738265453309,-1607.97,0.00019178,2]
[350979849,1738265453320,-500.0,0.00019178,2]
[350979850,1738265453330,-500.0,0.00019178,2]
[350979851,1738265453340,-504.23205526,0.00019178,2]
[350979852,1738265453350,-915.61,0.00019178,2]
[350979853,1738265453360,-601.02,0.00019178,2]
[350979854,1738265453369,-505.27559815,0.00019178,2]
[350979855,1738265453379,-500.0,0.00019178,2]
[350979856,1738265453388,-500.0,0.00019178,2]
[350979857,1738265453398,-500.0,0.00019178,2]
[350979858,1738265453408,-505.3022437,0.00019178,2]
[350979859,1738265453418,-500.0,0.00019178,2]
[350979860,1738265453427,-500.0,0.00019178,2]
[350979861,1738265453438,-500.0,0.00019178,2]
[350979862,1738265453448,-1234.78,0.00019178,2]
[350979863,1738265453459,-1330.73,0.00019178,2]
[350979864,1738265453469,-500.0,0.00019178,2]
[350979865,1738265453478,-748.58,0.00019178,2]
[350979866,1738265453489,-500.0,0.00019178,2]
[350979867,1738265453498,-1818.8,0.00019178,2]
[350979868,1738265453508,-526.68,0.00019178,2]
[350979869,1738265453518,-500.0,0.00019178,2]
[350979870,1738265453530,-500.0,0.00019178,2]
[350979871,1738265453539,-500.0,0.00019178,2]
[350979872,1738265453549,-259.75684105,0.00019178,2]
[350979873,1738265453559,-500.0,0.00019178,2]
[350979874,1738265453568,-500.0,0.00019178,2]
[350979875,1738265453578,-500.0,0.00019178,2]
[350979876,1738265453587,-2116.79,0.00019178,2]
[350979877,1738265453597,-2331.21,0.00019178,2]
[350979878,1738265453606,-953.03,0.00019178,2]
[350979879,1738265453616,-509.32950816,0.00019178,2]
[350979880,1738265453626,-513.67065826,0.00019178,2]
[350979881,1738265453636,-500.0,0.00019178,2]
[350979882,1738265453646,-500.0,0.00019178,2]
[350979883,1738265453656,-520.83,0.00019178,2]
[350979884,1738265453665,-500.0,0.00019178,2]
[350979885,1738265453675,-500.0,0.00019178,2]
[350979886,1738265453684,-500.0,0.00019178,2]
[350979887,1738265453693,-615.99,0.00019178,2]
[350979888,1738265453702,-615.99,0.00019178,2]
[350979889,1738265453712,-500.0,0.00019178,2]
[350979890,1738265453722,-500.00308066,0.00019178,2]
[350979891,1738265453732,-615.99,0.00019178,2]
[350979892,1738265453741,-615.99,0.00019178,2]
[350979893,1738265453751,-500.0,0.00019178,2]
[350979894,1738265453761,-615.99,0.00019178,2]
[350979895,1738265453770,-615.99,0.00019178,2]
[350979896,1738265453781,-615.99,0.00019178,2]
[350979897,1738265453791,-615.99,0.00019178,2]
[350979898,1738265453800,-1006.96,0.00019178,2]
[350979899,1738265453809,-615.99,0.00019178,2]
[350979900,1738265453819,-500.0,0.00019178,2]
[350979901,1738265453828,-615.99,0.00019178,2]
[350979902,1738265453837,-615.99,0.00019178,2]
[350979903,1738265453847,-615.99,0.00019178,2]
[350979904,1738265453856,-615.99,0.00019178,2]
[350979905,1738265453866,-843.48,0.00019178,2]
[350979906,1738265453876,-615.99,0.00019178,2]
[350979907,1738265453885,-615.99,0.00019178,2]
[350979908,1738265453896,-500.0,0.00019178,2]
[350979909,1738265453908,-500.0,0.00019178,2]
[350979910,1738265453919,-500.0,0.00019178,2]
[350979911,1738265453929,-500.0,0.00019178,2]
[350979912,1738265453938,-500.0,0.00019178,2]
[350979913,1738265453949,-500.0,0.00019178,2]
[350979914,1738265453959,-826.08,0.00019178,2]
[350979915,1738265453968,-867.34,0.00019178,2]
[350979916,1738265453977,-500.0,0.00019178,2]
[350979917,1738265453989,-680.93,0.00019178,2]
[350979918,1738265453998,-514.9617298,0.00019178,2]
[350979919,1738265454008,-500.0,0.00019178,2]
[350979920,1738265454017,-500.0,0.00019178,2]
[350979921,1738265454029,-550.69531345,0.00019178,2]
[350979922,1738265454038,-500.0,0.00019178,2]
[350979923,1738265454047,-500.0,0.00019178,2]
[350979924,1738265454056,-500.0,0.00019178,2]
[350979925,1738265454066,-500.0,0.00019178,2]
[350979926,1738265454076,-500.0,0.00019178,2]
[350979927,1738265454088,-546.8222062,0.00019178,2]
[350979928,1738265454098,-996.85,0.00019178,2]
[350979929,1738265454108,-585.77699937,0.00019178,2]
[350979930,1738265454118,-500.0,0.00019178,2]
[350979931,1738265454128,-1139.39,0.00019178,2]
[350979932,1738265454138,-500.0,0.00019178,2]
[350979933,1738265454148,-500.0,0.00019178,2]
[350979934,1738265454158,-790.13,0.00019178,2]
[350979935,1738265454168,-500.0,0.00019178,2]
[350979936,1738265454178,-500.0,0.00019178,2]
[350979937,1738265454187,-500.0,0.00019178,2]
[350979938,1738265454198,-501.52262762,0.00019178,2]
[350979939,1738265454208,-500.0,0.00019178,2]
[350979940,1738265454218,-500.0,0.00019178,2]
[350979941,1738265454228,-500.0,0.00019178,2]
[350979942,1738265454238,-500.0,0.00019178,2]
[350979943,1738265454247,-943.3,0.00019178,2]
[350979944,1738265454257,-500.0,0.00019178,2]
[350979945,1738265454266,-500.81937371,0.00019178,2]
[350979946,1738265454278,-500.0,0.00019178,2]
[350979947,1738265454288,-500.0,0.00019178,2]
[350979948,1738265454298,-502.60575447,0.00019178,2]
[350979949,1738265454308,-1147.05,0.00019178,2]
[350979950,1738265454317,-501.06697621,0.00019178,2]
[350979951,1738265454327,-1541.87,0.00019178,2]
[350979952,1738265454337,-500.0,0.00019178,2]
[350979953,1738265454347,-500.0,0.00019178,2]
[350979954,1738265454358,-500.0,0.00019178,2]
[350979955,1738265454368,-500.0,0.00019178,2]
[350979956,1738265454378,-500.0,0.00019178,2]
[350979957,1738265454388,-500.0,0.00019178,2]
[350979958,1738265454399,-756.67,0.00019178,2]
[350979959,1738265454409,-1294.45,0.00019178,2]
[350979960,1738265454419,-500.0,0.00019178,2]
[350979961,1738265454429,-515.86470762,0.00019178,2]
[350979962,1738265454439,-606.87,0.00019178,2]
[350979963,1738265454449,-500.0,0.00019178,2]
[350979964,1738265454460,-500.0,0.00019178,2]
[350979965,1738265454470,-696.02,0.00019178,2]
[350979966,1738265454480,-1585.45,0.00019178,2]
[350979967,1738265454491,-500.0,0.00019178,2]
[350979968,1738265454501,-500.0,0.00019178,2]
[350979969,1738265454511,-500.0,0.00019178,2]
[350979970,1738265454520,-1323.21,0.00019178,2]
[350979971,1738265454532,-500.0,0.00019178,2]
[350979972,1738265454542,-500.0,0.00019178,2]
[350979973,1738265454552,-500.0,0.00019178,2]
[350979974,1738265454642,-500.0,0.00019178,2]
[350979975,1738265454653,-500.0,0.00019178,2]
[350979976,1738265454663,-500.0,0.00019178,2]
[350979977,1738265454672,-500.0,0.00019178,2]
[350979978,1738265454681,-500.0,0.00019178,2]
[350979979,1738265454691,-920.2,0.00019178,2]
[350979980,1738265454700,-450.82691973,0.00019178,2]
[350979981,1738265454711,-648.2768,0.00019178,2]
[350979982,1738265454720,-1549.99,0.00019178,2]
[350979983,1738265454729,-629.75754926,0.00019178,2]
[350979984,1738265454739,-563.54,0.00019178,2]
[350979985,1738265454749,-500.0,0.00019178,2]
[350979986,1738265454758,-500.09,0.00019178,2]
[350979987,1738265454768,-906.34,0.00019178,2]
[350979988,1738265454779,-500.0,0.00019178,2]
[350979989,1738265454788,-500.0,0.00019178,2]
[350979990,1738265454798,-500.0,0.00019178,2]
[350979991,1738265454808,-500.7902875,0.00019178,2]
[350979992,1738265454818,-655.61,0.00019178,2]
[350979993,1738265454827,-500.0,0.00019178,2]
[350979994,1738265454838,-500.0,0.00019178,2]
[350979995,1738265454848,-500.0,0.00019178,2]
[350979996,1738265454858,-500.0,0.00019178,2]
[350979997,1738265454868,-1096.95,0.00019178,2]
[350979998,1738265454878,-500.0,0.00019178,2]
[350979999,1738265454888,-500.0,0.00019178,2]
[350980000,1738265454898,-500.0,0.00019178,2]
[350980001,1738265454908,-461.857216,0.00019178,2]
[350980002,1738265454919,-500.0,0.00019178,2]
[350980003,1738265454929,-1933.96,0.00019178,2]
[350980004,1738265454938,-500.0,0.00019178,2]
[350980005,1738265454949,-1069.78,0.00019178,2]
[350980006,1738265454958,-2505.84,0.00019178,2]
[350980007,1738265454968,-500.0,0.00019178,2]
[350980008,1738265454977,-500.0,0.00019178,2]
[350980009,1738265454988,-1005.21,0.00019178,2]
[350980010,1738265454999,-500.0,0.00019178,2]
[350980011,1738265455009,-500.0,0.00019178,2]
[350980012,1738265455018,-1181.94,0.00019178,2]
[350980013,1738265455029,-460.20621671,0.00019178,2]
[350980014,1738265455038,-500.0,0.00019178,2]
[350980015,1738265455048,-1213.49,0.00019178,2]
[350980016,1738265455058,-500.0,0.00019178,2]
[350980017,1738265455068,-886.56,0.00019178,2]
[350980018,1738265455078,-1103.78,0.00019178,2]
[350980019,1738265455087,-500.0,0.00019178,2]
[350980020,1738265455097,-500.0,0.00019178,2]
[350980021,1738265455107,-1195.54,0.00019178,2]
[350980022,1738265455122,-500.0,0.00019178,2]
[350980023,1738265455143,-1113.65,0.00019178,2]
[350980024,1738265455164,-466.09528951,0.00019178,2]
[350980025,1738265455185,-1287.46,0.00019178,2]
[350980026,1738265455206,-928.76,0.00019178,2]
[350980027,1738265455227,-500.0,0.00019178,2]
[350980028,1738265455248,-423.151809,0.00019178,2]
[350980029,1738265455269,-1889.11,0.00019178,2]
[350980030,1738265455290,-1182.32,0.00019178,2]
[350980031,1738265455311,-500.0,0.00019178,2]
[350980032,1738265455332,-500.50636773,0.00019178,2]
[350980033,1738265455353,-500.0,0.00019178,2]
[350980034,1738265455373,-1937.01,0.00019178,2]
[350980035,1738265455390,-500.0,0.00019178,2]
[350980036,1738265455400,-500.0,0.00019178,2]
[350980037,1738265455409,-500.0,0.00019178,2]
[350980038,1738265455419,-504.35653299,0.00019178,2]
[350980039,1738265455429,-1046.04,0.00019178,2]
[350980040,1738265455439,-500.0,0.00019178,2]
[350980041,1738265455450,-887.51,0.00019178,2]
[350980042,1738265455459,-983.57,0.00019178,2]
[350980043,1738265455469,-500.0,0.00019178,2]
[350980044,1738265455479,-482.12552682,0.00019178,2]
[350980045,1738265455489,-1573.85,0.00019178,2]
[350980046,1738265455498,-500.0,0.00019178,2]
[350980047,1738265455508,-500.0,0.00019178,2]
[350980048,1738265455518,-500.0,0.00019178,2]
[350980049,1738265455528,-404.85601,0.00019178,2]
[350980050,1738265455537,-1766.92,0.00019178,2]
[350980051,1738265455546,-546.07552847,0.00019178,2]
[350980052,1738265455556,-500.0,0.00019178,2]
[350980053,1738265455566,-500.0,0.00019178,2]
[350980054,1738265455575,-500.0,0.00019178,2]
[350980055,1738265455585,-505.29507542,0.00019178,2]
[350980056,1738265455594,-1097.82,0.00019178,2]
[350980057,1738265455605,-500.0,0.00019178,2]
[350980058,1738265455615,-500.0,0.00019178,2]
[350980059,1738265455626,-500.28299632,0.00019178,2]
[350980060,1738265455636,-1432.7,0.00019178,2]
[350980061,1738265455645,-964.77,0.00019178,2]
[350980062,1738265455655,-5000.0,0.00019178,2]
[350980063,1738265455664,-500.0,0.00019178,2]
[350980064,1738265455674,-500.0,0.00019178,2]
[350980065,1738265455684,-500.0,0.00019178,2]
[350980066,1738265455694,-813.64,0.00019178,2]
[350980067,1738265455703,-500.0,0.00019178,2]
[350980068,1738265455712,-1036.56,0.00019178,2]
[350980069,1738265455722,-565.16,0.00019178,2]
[350980070,1738265455731,-1638.74,0.00019178,2]
[350980071,1738265455740,-396.681502,0.00019178,2]
[350980072,1738265455750,-875.47,0.00019178,2]
[350980073,1738265455760,-961.51,0.00019178,2]
[350980074,1738265455769,-500.0,0.00019178,2]
[350980075,1738265455780,-505.32637312,0.00019178,2]
[350980076,1738265455789,-502.96516541,0.00019178,2]
[350980077,1738265455799,-500.0,0.00019178,2]
[350980078,1738265455808,-500.0,0.00019178,2]
[350980079,1738265455818,-2104.8,0.00019178,2]
[350980080,1738265455828,-500.0,0.00019178,2]
[350980081,1738265455838,-8175.99,0.00019178,2]
[350980082,1738265455847,-724.05,0.00019178,2]
[350980083,1738265455856,-1320.08,0.00019178,2]
[350980084,1738265455866,-500.0,0.00019178,2]
[350980085,1738265455875,-500.0,0.00019178,2]
[350980086,1738265455885,-500.0,0.00019178,2]
[350980087,1738265455894,-1220.45,0.00019178,2]
[350980088,1738265455908,-500.0,0.00019178,2]
[350980089,1738265455917,-500.0,0.00019178,2]
[350980090,1738265455927,-501.42772387,0.00019178,2]
[350980091,1738265455937,-500.0,0.00019178,2]
[350980092,1738265455948,-500.0,0.00019178,2]
[350980093,1738265455957,-500.0,0.00019178,2]
[350980094,1738265455967,-500.0,0.00019178,2]
[350980095,1738265455977,-500.0,0.00019178,2]
[350980096,1738265455987,-500.0,0.00019178,2]
[350980097,1738265455997,-894.77,0.00019178,2]
[350980098,1738265456006,-500.0,0.00019178,2]
[350980099,1738265456016,-500.0,0.00019178,2]
[350980100,1738265456026,-500.0,0.00019178,2]
[350980101,1738265456036,-1082.61,0.00019178,2]
[350980102,1738265456046,-500.0,0.00019178,2]
[350980103,1738265456056,-500.0,0.00019178,2]
[350980104,1738265456066,-1254.12,0.00019178,2]
[350980105,1738265456076,-500.0,0.00019178,2]
[350980106,1738265456085,-1102.44,0.00019178,2]
[350980107,1738265456095,-1416.55,0.00019178,2]
[350980108,1738265456104,-500.0,0.00019178,2]
[350980109,1738265456113,-1836.2,0.00019178,2]
[350980110,1738265456123,-500.0,0.00019178,2]
[350980111,1738265456135,-500.0,0.00019178,2]
[350980112,1738265456145,-967.44,0.00019178,2]
[350980113,1738265456155,-500.0,0.00019178,2]
[350980114,1738265456164,-502.3479393,0.00019178,2]
[350980115,1738265456174,-162.02550065,0.00019178,2]
[350980116,1738265456184,-1057.77,0.00019178,2]
[350980117,1738265456193,-1933.89,0.00019178,2]
[350980118,1738265456203,-627.39,0.00019178,2]
[350980119,1738265456213,-500.0,0.00019178,2]
[350980120,1738265456223,-500.0,0.00019178,2]
[350980121,1738265456232,-500.0,0.00019178,2]
[350980122,1738265456242,-500.0,0.00019178,2]
[350980123,1738265456251,-728.17,0.00019178,2]
[350980124,1738265456261,-1998.98,0.00019178,2]
[350980125,1738265456272,-1689.64,0.00019178,2]
[350980126,1738265456284,-500.0,0.00019178,2]
[350980127,1738265456293,-500.0,0.00019178,2]
[350980128,1738265456302,-500.0,0.00019178,2]
[350980129,1738265456311,-500.0,0.00019178,2]
[350980130,1738265456320,-790.63,0.00019178,2]
[350980131,1738265456328,-1668.27,0.00019178,2]
[350980132,1738265456338,-1107.68,0.00019178,2]
[350980133,1738265456348,-500.0,0.00019178,2]
[350980134,1738265456357,-500.0,0.00019178,2]
[350980135,1738265456367,-500.0,0.00019178,2]
[350980136,1738265456376,-810.65,0.00019178,2]
[350980137,1738265456386,-1465.76,0.00019178,2]
[350980138,1738265456395,-500.0,0.00019178,2]
[350980139,1738265456404,-500.0,0.00019178,2]
[350980140,1738265456414,-1206.71,0.00019178,2]
[350980141,1738265456423,-500.0,0.00019178,2]
[350980142,1738265456432,-1460.67,0.00019178,2]
[350980143,1738265456442,-587.06992791,0.00019178,2]
[350980144,1738265456451,-500.0,0.00019178,2]
[350980145,1738265456460,-1238.02,0.00019178,2]
[350980146,1738265456470,-3476.83,0.00019178,2]
[350980147,1738265456479,-500.0,0.00019178,2]
[350980148,1738265456490,-1265.45,0.00019178,2]
[350980149,1738265456499,-500.0,0.00019178,2]
[350980150,1738265456508,-1050.73,0.00019178,2]
[350980151,1738265456518,-1415.87,0.00019178,2]
[350980152,1738265456530,-3418.99,0.00019178,2]
[350980153,1738265456539,-500.0,0.00019178,2]
[350980154,1738265456548,-500.0,0.00019178,2]
[350980155,1738265456558,-500.0,0.00019178,2]
[350980156,1738265456567,-500.0,0.00019178,2]
[350980157,1738265456576,-500.0,0.00019178,2]
[350980158,1738265456586,-1359.84,0.00019178,2]
[350980159,1738265456595,-1232.99,0.00019178,2]
[350980160,1738265456604,-2360.62,0.00019178,2]